lending/lending_fUSD_20250430
["ID","MTS","AMOUNT","RATE_DAILY","PERIOD"]
[359392639,1745981440669,-732.59,0.00021644,2]
[359392640,1745981440681,-1000.0,0.00021733,2]
[359392641,1745981440691,-179.59425266,0.00021909,2]
[359392642,1745981440702,-150.0,0.00021917,2]
[359392643,1745981440715,-500.0,0.00022,2]
[359392644,1745981440724,-2000.0,0.00022,4]
[359392645,1745981440733,-1000.0,0.000223,2]
[359392646,1745981440747,-293.63,0.0002231,2]
[359392647,1745981440757,-3257.71221819,0.00022394,2]
[359392648,1745981440768,-2153.15,0.00022426,2]
[359392649,1745981440778,-1960.0,0.000226,2]
[359392650,1745981440789,-400.0,0.00023,2]
[359392651,1745981440799,-1000.0,0.00023,2]
[359392652,1745981440809,-1339.0,0.00023067,2]
[359392653,1745981440821,-922.0,0.00023067,2]
[359392654,1745981440831,-797.0,0.00023067,2]
[359392655,1745981440840,-2068.0,0.00023067,2]
[359392656,1745981440849,-549.0,0.00023067,2]
[359392657,1745981440858,-580.0,0.00023067,2]
[359392658,1745981440867,-913.0,0.00023067,2]
[359392659,1745981440876,-4001.0,0.00023067,2]
[359392660,1745981440885,-880.05,0.00023067,2]
[359392661,1745981440894,-152.684,0.00023067,2]
[359392662,1745981440904,-263.24,0.00023067,2]
[359392663,1745981440916,-6746.0,0.00023067,2]
[359392664,1745981440926,-900.463,0.00023067,2]
[359392665,1745981440936,-210.82603367,0.00023287,2]
[359392666,1745981440945,-1000.0,0.000234,2]
[359392667,1745981440955,-2351.0,0.00023597,2]
[359392668,1745981440965,-1584.24366151,0.000237,4]
[359392669,1745981440974,-1584.24366147,0.000237,4]
[359392670,1745981440983,-1584.24366147,0.000237,4]
[359392671,1745981440992,-1584.24366147,0.000237,4]
[359392672,1745981441003,-171.95,0.00023836,2]
[359392673,1745981441012,-1000.0,0.00023906,2]
[359392674,1745981441022,-179.59425266,0.00023918,2]
[359392675,1745981441031,-2000.0,0.00024,4]
[359392676,1745981441041,-1000.0,0.00024148,2]
[359392677,1745981441051,-250.0,0.00024197,2]
[359392678,1745981441060,-200.0,0.0002426,2]
[359392679,1745981441069,-169.61,0.00024287,2]
[359392680,1745981441079,-1584.24366147,0.00024348,5]
[359392681,1745981441088,-151.0,0.00024551,2]
[359392682,1745981441098,-207.4,0.00024551,2]
[359392683,1745981441107,-196.33541319,0.00024551,2]
[359392684,1745981441116,-1000.0,0.000246,2]
[359392685,1745981441126,-500.0,0.00024602,2]
[359392686,1745981441136,-2000.0,0.00024602,2]
[359392687,1745981441146,-200.0,0.00024602,2]
[359392688,1745981441155,-2153.15,0.0002469,2]
[359392689,1745981441165,-627.27194259,0.00024771,2]
[359392690,1745981441175,-51131.6533883,0.00024788,2]
[359392691,1745981441184,-1649.4901437,0.00024788,2]
[359392693,1745981441194,-171.3329484,0.00024788,2]
[359392694,1745981441204,-613.8191866,0.00024788,2]
[359392695,1745981441213,-6223.8633785,0.00024788,2]
[359392696,1745981441224,-820.34666162,0.000248,2]
[359392697,1745981441234,-297748.90163893,0.000248,3]
[359392698,1745981441354,-651.96175827,0.000248,3]
[359392699,1745981443378,-288.21007754,0.00024658,2]
[359392700,1745981443597,-211.78992246,0.00024658,2]
[359392701,1745981443606,-7306.05576524,0.000248,3]
[359392702,1745981443618,-23087.60001,0.000248,3]
[359392704,1745981446600,-400.0,0.00019856,2]
[359392705,1745981446639,-1435.71016166,0.00019856,2]
[359392713,1745981599195,500.0,0.0003011,120]
[359392714,1745981755003,200.0,0.00018958,2]
[359392715,1745982165914,250.0,0.00017,2]
[359392716,1745982167016,211.91,0.00019,2]
[359392717,1745982167038,88.09,0.00019,2]
[359392718,1745982201592,276.425727,0.0003011,120]
[359392719,1745982223244,200.0,0.0003013,120]
[359392720,1745982241569,141939.34,0.000301,120]
[359392721,1745982290709,2500.0,0.0003,30]
[359392729,1745982463936,197.0,0.0003,32]
[359392730,1745982533488,197.0,0.000193,2]
[359392731,1745982534576,197.0,0.000193,2]
[359392741,1745982620273,197.0,0.0003,33]
[359392749,1745982631872,-200.0,0.00019429,2]
[359392751,1745982631882,-200.0,0.00019478,2]
[359392753,1745982631891,-165.9,0.00019527,2]
[359392755,1745982631900,-10.42919768,0.00019544,2]
[359392757,1745982631912,-189.57080232,0.00019544,2]
[359392759,1745982631921,-292.68756958,0.000197,2]
[359392761,1745982631930,-300.0,0.00019799,2]
[359392763,1745982631939,-216.25951076,0.00019799,2]
[359392808,1745982637469,-983.74048924,0.00019799,2]
[359392809,1745982637479,-106.36564471,0.00019799,2]
[359392810,1745982637521,-193.63435529,0.00019799,2]
[359392811,1745982637532,-1000.0,0.000198,2]
[359392812,1745982637542,-3490.41548861,0.000198,2]
[359393007,1745982639714,-62953.09269237,0.000198,2]
[359393009,1745982639723,-2183.92,0.00020402,2]
[359393011,1745982639732,-350.0,0.00021,2]
[359393013,1745982639742,-150.99,0.00021,2]
[359393015,1745982639752,-250.0,0.00021318,2]
[359393017,1745982639761,-200.0,0.00021318,2]
[359393019,1745982639770,-200.0,0.00021372,2]
[359393021,1745982639779,-500.0,0.00021413,2]
[359393023,1745982639788,-500.0,0.00021479,2]
[359393025,1745982639797,-420.0,0.00021563,2]
[359393027,1745982639806,-10037.10173845,0.00021607,2]
[359393029,1745982639815,-500.0,0.00021667,2]
[359393030,1745982639824,-1680.0,0.00021667,2]
[359393032,1745982639833,-150.0,0.00021917,2]
[359393033,1745982639842,-13356.21,0.00021982,2]
[359393035,1745982639851,-20711.89,0.00022005,2]
[359393037,1745982639860,-2269.56,0.00022066,2]
[359393051,1745982639994,-1500.0,0.00022109,2]
[359393053,1745982640011,-2481.96,0.00022179,2]
[359393055,1745982640021,-207.4,0.00022191,2]
[359393057,1745982640030,-196.33541319,0.00022191,2]
[359393059,1745982640039,-151.0,0.00022191,2]
[359393061,1745982640049,-23900.0,0.00022297,2]
[359393063,1745982640058,-1000.0,0.00022351,2]
[359393065,1745982640067,-200.0,0.00022383,2]
[359393067,1745982640078,-250.0,0.00022458,2]
[359393069,1745982640089,-158.49,0.00022515,2]
[359393071,1745982640100,-158.49,0.00022523,2]
[359393073,1745982640117,-158.49,0.0002253,2]
[359393074,1745982640126,-158.49,0.00022538,2]
[359393075,1745982640136,-158.49,0.00022545,2]
[359393076,1745982640145,-158.49,0.00022553,2]
[359393077,1745982640154,-158.49,0.0002256,2]
[359393078,1745982640164,-158.49,0.00022568,2]
[359393079,1745982640173,-158.49,0.00022575,2]
[359393080,1745982640182,-158.49,0.00022583,2]
[359393081,1745982640192,-3257.71221819,0.00022586,2]
[359393082,1745982640201,-158.49,0.0002259,2]
[359393083,1745982640210,-158.49,0.00022598,2]
[359393084,1745982640219,-158.49,0.00022605,2]
[359393085,1745982640228,-158.49,0.00022613,2]
[359393086,1745982640238,-158.49,0.0002262,2]
[359393087,1745982640247,-158.49,0.00022628,2]
[359393088,1745982640256,-152.46,0.00022629,2]
[359393089,1745982640266,-505.0,0.0002263,2]
[359393090,1745982640275,-2037.77,0.00022663,2]
[359393091,1745982640285,-2183.92,0.00022666,2]
[359393093,1745982640293,-6746.0,0.00022739,2]
[359393095,1745982640303,-900.463,0.00022739,2]
[359393097,1745982640312,-880.05,0.00022739,2]
[359393099,1745982640321,-4001.0,0.00022739,2]
[359393101,1745982640336,-152.684,0.00022739,2]
[359393103,1745982640345,-263.24,0.00022739,2]
[359393105,1745982640354,-230.905,0.00022739,2]
[359393107,1745982640363,-165.9,0.0002275,2]
[359393109,1745982640373,-1000.0,0.00022794,2]
[359393111,1745982640382,-400.0,0.00023,2]
[359393113,1745982640392,-150.563,0.00023067,2]
[359393115,1745982640401,-150.0,0.00023287,2]
[359393117,1745982640410,-6814.45719621,0.00023447,2]
[359393119,1745982640420,-587.0,0.00023485,2]
[359393121,1745982640428,-156.91,0.00023547,2]
[359393123,1745982640437,-1339.0,0.00023547,2]
[359393125,1745982640446,-922.0,0.00023547,2]
[359393126,1745982640455,-1298.888,0.00023547,2]
[359393128,1745982640465,-797.0,0.00023547,2]
[359393130,1745982640475,-1459.164,0.00023547,2]
[359393132,1745982640484,-617.43,0.00023547,2]
[359393134,1745982640494,-921.304,0.00023547,2]
[359393136,1745982640503,-2090.901,0.00023547,2]
[359393138,1745982640513,-580.846,0.00023547,2]
[359393140,1745982640522,-215.0738,0.0002356,2]
[359393142,1745982640531,-153.14136927,0.0002356,2]
[359393144,1745982640540,-1584.24366151,0.000236,4]
[359393146,1745982640549,-2351.0,0.00023711,2]
[359393148,1745982640559,-1000.0,0.000238,2]
[359393150,1745982640568,-555.70696271,0.00023807,2]
[359393152,1745982640577,-171.95,0.00023836,2]
[359393154,1745982640587,-152.46,0.00023886,2]
[359393156,1745982640596,-162.05,0.00024384,2]
[359393158,1745982640606,-162.05,0.00024384,2]
[359393160,1745982640615,-207.0,0.00024411,2]
[359393162,1745982640625,-699.18813225,0.00024447,2]
[359393164,1745982640634,-2500.0,0.000245,2]
[359393166,1745982640643,-38936.4111,0.000246,2]
[359393168,1745982640653,-197.0,0.000246,2]
[359393170,1745982640663,-197.0,0.000246,3]
[359393172,1745982640673,-500.0,0.00024602,2]
[359393174,1745982640682,-2000.0,0.00024602,2]
[359393176,1745982640691,-200.0,0.00024602,2]
[359393178,1745982640700,-150.0,0.00024657,2]
[359393180,1745982640710,-244.96510979,0.00024694,2]
[359393182,1745982640719,-33109.89692044,0.00024694,2]
[359393184,1745982640728,-18545.7172,0.000247,2]
[359393186,1745982640738,-500.0,0.00024762,2]
[359393188,1745982640747,-502.57789751,0.00024773,2]
[359393190,1745982640756,-208.35397282,0.00024773,2]
[359393192,1745982640765,-500.0,0.00024773,2]
[359393194,1745982640775,-628.23750063,0.00024773,2]
[359393196,1745982640784,-1931.1942,0.00024773,2]
[359393198,1745982640794,-3306.8974569,0.00024794,2]
[359393200,1745982640803,-119963.5977919,0.00024794,2]
[359393202,1745982640813,-474.1423978,0.00024794,2]
[359393204,1745982640822,-534.0655583,0.00024794,2]
[359393206,1745982640831,-152.24300464,0.000248,2]
[359393208,1745982640841,-155.15136,0.000248,2]
[359393210,1745982640851,-1000.0,0.000248,2]
[359393212,1745982640861,-1640.69332322,0.000248,2]
[359393214,1745982640870,-197.0,0.000248,4]
[359393216,1745982640879,-197.0,0.000248,3]
[359393218,1745982640889,-17635.52551302,0.000248,3]
[359393428,1745982642891,-1056.434684,0.00019699,2]
[359393430,1745982642900,-500.0,0.00024658,2]
[359393432,1745982642910,-15274.33681329,0.000248,3]
[359393560,1745982645501,-198.0,0.00021918,2]
[359393561,1745982645511,-1168.944,0.00022789,2]
[359393562,1745982645522,-39668.49895199,0.000248,3]
[359393563,1745982645533,-197.0,0.000248,4]
[359393564,1745982645544,-151.00000001,0.000248,2]
[359393565,1745982645553,-746.3047484,0.00024836,2]
[359393566,1745982645563,-2800.3180996,0.00024836,2]
[359393567,1745982645609,-1942.9805,0.00024836,2]
[359393568,1745982645623,-359.1639782,0.00024836,2]
[359393743,1745982832280,150.0,1.096e-05,2]
[359393744,1745982832784,150.0,2.192e-05,2]
[359393745,1745982832913,150.0,3.288e-05,2]
[359393746,1745982833169,150.0,4.384e-05,2]
[359393747,1745982833477,150.0,5.479e-05,2]
[359393748,1745982833914,150.0,6.575e-05,2]
[359393749,1745982834181,150.0,7.671e-05,2]
[359393750,1745982834603,150.0,8.767e-05,2]
[359393751,1745982835125,150.0,9.863e-05,2]
[359393752,1745982835231,150.0,0.00010959,2]
[359393753,1745982835334,239.69641075,0.00012055,2]
[359393754,1745982960496,197.0,0.000193,2]
[359393755,1745982963618,197.0,0.000193,2]
[359393756,1745982981658,201.13829381,0.00019204,2]
[359393757,1745983001412,650.19,0.0003,30]
[359393758,1745983440055,171.01,0.00016712,2]
[359393759,1745983550366,500.0,0.0003,30]
[359393760,1745983556120,4961.96658876,6.94e-05,2]
[359393761,1745983618321,2504.28320602,0.0002945,44]
[359393762,1745983626787,278.5955,0.000153,2]
[359393768,1745983630520,2643.41994348,0.00015,2]
[359393772,1745983634181,3855.02367722,0.00015,2]
[359393777,1745983677836,1716.99954733,0.000181,2]
[359393778,1745983711290,1148.04662733,0.00018,2]
[359393784,1745983716146,3574.83959443,0.000149,2]
[359393785,1745983725449,3446.48870449,0.00013368,2]
[359393796,1745983831683,-300.0,0.00019899,2]
[359393797,1745983831693,-571.17732573,0.000199,2]
[359393798,1745983831702,-244.96510979,0.000199,2]
[359393799,1745983831711,-220.53295173,0.000199,2]
[359393800,1745983831720,-27069.04311752,0.000199,2]
[359393801,1745983831731,-916.06829668,0.000199,2]
[359393802,1745983831744,-584.06515306,0.000199,2]
[359393803,1745983831778,-4540.72035318,0.000199,2]
[359393804,1745983831787,-167.74549875,0.000199,2]
[359393805,1745983831796,-7841.41884719,0.00019904,2]
[359393806,1745983831807,-6099.9999999,0.00019904,2]
[359393807,1745983831818,-5880.0,0.00019904,2]
[359393808,1745983831829,-3550.000005,0.00019904,2]
[359393809,1745983831841,-1300.0,0.00019904,2]
[359393810,1745983831852,-921.68642448,0.00019904,2]
[359393811,1745983831923,-7516.79164386,0.00019904,2]
[359393813,1745983831932,-28353.73136212,0.00019909,2]
[359393815,1745983831943,-4756.16555831,0.00019909,2]
[359393817,1745983831952,-33109.89692043,0.00019913,2]
[359393819,1745983831963,-33109.89692043,0.00019918,2]
[359393820,1745983831972,-12006.34147083,0.00019922,2]
[359393825,1745983832009,-3408.02773957,0.00019922,2]
[359393828,1745983832020,-4050.0,0.00019922,2]
[359393831,1745983832031,-3224.07961605,0.00019922,2]
[359393836,1745983832060,-427.38666651,0.00019922,2]
[359393838,1745983832071,-7503.62901673,0.00019922,2]
[359393839,1745983832082,-2490.43241074,0.00019922,2]
[359393841,1745983832092,-200.0,0.00019936,2]
[359393842,1745983832101,-167.74549875,0.0001994,2]
[359393843,1745983832111,-200.0,0.00019963,2]
[359393844,1745983832123,-198.91682307,0.00019971,2]
[359393845,1745983832134,-101.08317693,0.00019971,2]
[359393846,1745983832143,-1200.0,0.00019972,2]
[359393847,1745983832152,-502.02433921,0.00019973,2]
[359393848,1745983832161,-164.6172887,0.00019973,2]
[359393849,1745983832171,-507.40124163,0.00019973,2]
[359393850,1745983832180,-500.0,0.00019973,2]
[359393851,1745983832189,-160.06429201,0.00019973,2]
[359393852,1745983832198,-153.27039154,0.00019973,2]
[359393853,1745983832207,-508.33631247,0.00019973,2]
[359393854,1745983832216,-500.0,0.00019973,2]
[359393855,1745983832226,-152.83,0.0001999,2]
[359393856,1745983832235,-152.83,0.0001999,2]
[359393857,1745983832246,-152.83,0.0001999,2]
[359393858,1745983832256,-152.83,0.0001999,2]
[359393859,1745983832267,-152.83,0.0001999,2]
[359393860,1745983832278,-152.83,0.0001999,2]
[359393861,1745983832287,-152.83,0.0001999,2]
[359393862,1745983832296,-152.83,0.0001999,2]
[359393863,1745983832305,-500.0,0.00019999,2]
[359393864,1745983832315,-850.0,0.00019999,2]
[359393865,1745983832324,-150.0,0.00019999,2]
[359393866,1745983832334,-150.0,0.00019999,2]
[359393867,1745983832345,-150.0,0.00019999,2]
[359393868,1745983832354,-150.0,0.00019999,2]
[359393869,1745983832364,-150.0,0.00019999,2]
[359393870,1745983832374,-150.0,0.00019999,2]
[359393871,1745983832383,-150.0,0.00019999,2]
[359393872,1745983832393,-150.0,0.00019999,2]
[359393873,1745983832402,-150.0,0.00019999,2]
[359393874,1745983832412,-150.0,0.00019999,2]
[359393875,1745983832421,-150.0,0.00019999,2]
[359393876,1745983832430,-150.0,0.00019999,2]
[359393877,1745983832440,-150.0,0.00019999,2]
[359393878,1745983832449,-207.64698199,0.00019999,2]
[359393879,1745983832458,-183.73211428,0.0002,2]
[359393880,1745983832468,-18506.26409712,0.0002,2]
[359393881,1745983832479,-7848.25184115,0.0002,2]
[359393895,1745983837675,-33109.89692043,0.00019927,2]
[359393896,1745983837685,-66810.83011535,0.0002,2]
[359393897,1745983837695,-154433.64865763,0.0002,2]
[359393898,1745983837707,-5998.09751511,0.0002,2]
[359393899,1745983837718,-5786.30309549,0.0002,2]
[359393900,1745983837730,-124049.5246152,0.0002,2]
[359393901,1745983837742,-5747.74016914,0.0002,2]
[359393902,1745983837753,-775.44461026,0.0002,2]
[359393903,1745983837765,-11507.08391037,0.0002,2]
[359393904,1745983837777,-1037.35002977,0.0002,2]
[359393905,1745983837792,-1796996.72603107,0.0002,2]
[359393906,1745983837801,-37366.13229342,0.0002,2]
[359393907,1745983837810,-4303.89037235,0.0002,2]
[359393908,1745983837820,-709.39652791,0.0002,2]
[359393909,1745983837829,-3217391.94026373,0.0002,2]
[359393910,1745983837840,-1296.4560435,0.0002,2]
[359393911,1745983837853,-5267.28141203,0.0002,2]
[359393912,1745983837869,-364.04259866,0.0002,2]
[359393913,1745983837888,-407.7740149,0.0002,2]
[359393914,1745983837900,-2281.87364935,0.0002,2]
[359393915,1745983837911,-4108.3547939,0.0002,2]
[359393916,1745983837922,-608.0061,0.0002,2]
[359393917,1745983840049,-33109.89692043,0.00019931,2]
[359393918,1745983840058,-238697.10050849,0.0002,2]
[359393919,1745983840131,-720.8423296,0.0002,2]
[359393964,1745983842777,-9500.75889128,0.0002,2]
[359393987,1745983845825,-316.8594,0.000199,2]
[359393988,1745983845835,-683.1406,0.00019936,2]
[359393994,1745983955158,203.0,0.0003,120]
[359393995,1745983977673,250.0,0.00017,2]
[359393996,1745983978739,300.0,0.00019,2]
[359393997,1745984249215,-298.30436996,0.00019799,2]
[359393998,1745984249236,-316.8594,0.00019809,2]
[359393999,1745984249258,-250.0,0.00019854,2]
[359394000,1745984249280,-500.5951219,0.00019873,2]
[359394001,1745984249306,-1200.0,0.00019899,2]
[359394002,1745984249329,-300.0,0.00019899,2]
[359394003,1745984249350,-850.0,0.00019899,2]
[359394004,1745984249372,-200.0,0.000199,2]
[359394005,1745984249395,-9187.29130901,0.000199,2]
[359394006,1745984249418,-14530.65334387,0.000199,2]
[359394007,1745984249439,-224.63002419,0.000199,2]
[359394008,1745984249460,-447.2031,0.000199,2]
[359394009,1745984249482,-920.62202539,0.000199,2]
[359394010,1745984249503,-27840.2996,0.000199,2]
[359394011,1745984249523,-571.17732568,0.000199,2]
[359394012,1745984249544,-192.68038272,0.000199,2]
[359394013,1745984249566,-200.0,0.00019929,2]
[359394014,1745984249588,-500.0,0.00019973,2]
[359394015,1745984249613,-182.6403678,0.00019973,2]
[359394016,1745984249656,-500.0,0.00019973,2]
[359394017,1745984249679,-505.96051347,0.00019973,2]
[359394018,1745984249701,-500.0,0.00019973,2]
[359394019,1745984249724,-500.0,0.00019973,2]
[359394020,1745984249746,-301.82266464,0.00019973,2]
[359394021,1745984249769,-206.28606326,0.00019973,2]
[359394022,1745984249791,-504.16619613,0.00019973,2]
[359394023,1745984249817,-500.0,0.00019998,2]
[359394024,1745984249847,-500.0,0.00019998,2]
[359394025,1745984249876,-500.0,0.00019998,2]
[359394026,1745984249903,-500.0,0.00019998,2]
[359394027,1745984249928,-500.0,0.00019998,2]
[359394028,1745984249955,-582.64590304,0.00019998,2]
[359394029,1745984249982,-500.0,0.00019998,2]
[359394030,1745984250003,-311.45421426,0.00019999,2]
[359394031,1745984250024,-500.0,0.00019999,2]
[359394032,1745984250046,-257.72,0.00019999,2]
[359394033,1745984250069,-9999.99,0.00019999,2]
[359394034,1745984250090,-7143.63,0.00019999,2]
[359394035,1745984250112,-6445.83,0.00019999,2]
[359394036,1745984250133,-6962.62,0.00019999,2]
[359394037,1745984250155,-296.63,0.00019999,2]
[359394038,1745984250176,-150.99,0.00019999,2]
[359394039,1745984250197,-1000.0,0.00019999,2]
[359394040,1745984250219,-240.23614548,0.00019999,2]
[359394041,1745984250241,-202.56294367,0.00019999,2]
[359394042,1745984250261,-224.08083607,0.00019999,2]
[359394043,1745984250283,-157.4886246,0.00019999,2]
[359394044,1745984250306,-3958262.92952486,0.0002,2]
[359394045,1745984420151,5068.3705,0.00021945,10]
[359394046,1745984433480,2437.91,0.00018601,2]
[359394053,1745984783974,-699.18813224,0.00019475,2]
[359394054,1745984783999,-200.0,0.00019567,2]
[359394055,1745984784025,-1079.44,0.00019648,2]
[359394056,1745984784048,-213.3,0.00019658,2]
[359394057,1745984784072,-150.0,0.00019863,2]
[359394058,1745984784097,-1200.0,0.00019898,2]
[359394059,1745984784121,-300.0,0.00019898,2]
[359394060,1745984784145,-3928.9749,0.00019899,2]
[359394061,1745984784170,-166.50132291,0.00019899,2]
[359394062,1745984784196,-225.0,0.000199,2]
[359394063,1745984784232,-3067.59564485,0.000199,2]
[359394089,1745985031747,-300.0,0.00019899,2]
[359394090,1745985031757,-86.3364327,0.00019899,2]
[359394091,1745985031768,-595.39054192,0.00019899,2]
[359394092,1745985031780,-518.27302538,0.00019899,2]
[359394093,1745985031790,-300.0,0.00019899,2]
[359394094,1745985031799,-464.5308,0.000199,2]
[359394095,1745985031809,-3590.23141307,0.000199,2]
[359394096,1745985031820,-912.22240164,0.000199,2]
[359394097,1745985031878,-1399.93190357,0.000199,2]
[359394098,1745985031890,-1339.95998566,0.000199,2]
[359394099,1745985031901,-372.51000098,0.000199,2]
[359394100,1745985031987,-271.28249508,0.000199,2]
[359394101,1745985031997,-1143.6133,0.000199,2]
[359394102,1745985032007,-2287.3877,0.000199,2]
[359394103,1745985032016,-267.30288433,0.000199,2]
[359394104,1745985032028,-393.08501567,0.000199,2]
[359394105,1745985032037,-174.97507842,0.000199,2]
[359394106,1745985032047,-2465.7631,0.000199,2]
[359394107,1745985032057,-1416.17680592,0.000199,2]
[359394108,1745985032068,-2840.47319302,0.000199,2]
[359394109,1745985032113,-329.67616627,0.00019899,2]
[359394110,1745985032124,-68.39560073,0.00019899,2]
[359394111,1745985032133,-4067.18723942,0.000199,2]
[359394112,1745985032144,-622.49241668,0.000199,2]
[359394113,1745985032156,-445.49189213,0.000199,2]
[359394114,1745985032166,-588.1693003,0.000199,2]
[359394118,1745985032366,-257.62393705,0.000199,2]
[359394119,1745985032378,-10707.78819478,0.000199,2]
[359394120,1745985032389,-7538.41011593,0.000199,2]
[359394121,1745985032450,-504.42,0.000199,2]
[359394122,1745985032462,-13.32010477,0.000199,2]
[359394123,1745985032472,-5047.84051341,0.000199,2]
[359394124,1745985032506,-6382.85945938,0.000199,2]
[359394125,1745985032517,-298.695,0.000199,2]
[359394126,1745985032528,-3985.40504496,0.000199,2]
[359394129,1745985037787,-673.77768374,0.000199,2]
[359394130,1745985037797,-200.0,0.00019936,2]
[359394131,1745985037806,-200.0,0.00019969,2]
[359394132,1745985037815,-817.72261626,0.00019986,2]
[359394133,1745985037827,-182.26738374,0.00019986,2]
[359394134,1745985037837,-902.39770626,0.00019986,2]
[359394135,1745985037849,-1812.20000011,0.00019986,2]
[359394136,1745985037860,-475.94229363,0.00019986,2]
[359394137,1745985037869,-282.35770637,0.00019986,2]
[359394138,1745985037908,-9717.63229363,0.00019986,2]
[359394139,1745985037918,-150.99,0.00019986,2]
[359394140,1745985037927,-4105.35,0.00019986,2]
[359394141,1745985037937,-562.66,0.00019986,2]
[359394142,1745985037946,-7234.788705,0.00019986,2]
[359394143,1745985037955,-17476.6869983,0.00019986,2]
[359394144,1745985037964,-102485.25590307,0.0002,2]
[359394145,1745985037975,-958.43608478,0.0002,2]
[359394146,1745985037987,-9944.93161909,0.0002,2]
[359394147,1745985037999,-1632.98765464,0.0002,2]
[359394148,1745985038010,-215769.99285982,0.0002,2]
[359394149,1745985038019,-150.99,0.0002,2]
[359394150,1745985038028,-23900.0,0.00020064,2]
[359394151,1745985038038,-3069.48,0.00020139,2]
[359394152,1745985038047,-29999.99,0.00020145,2]
[359394153,1745985038057,-6758.99,0.00020145,2]
[359394154,1745985038066,-19999.99,0.00020145,2]
[359394155,1745985038075,-280.17388614,0.00020173,2]
[359394156,1745985038084,-496.34559302,0.00020173,2]
[359394157,1745985038093,-500.0,0.00020173,2]
[359394158,1745985038103,-721.67,0.00020207,2]
[359394159,1745985038113,-168.37,0.00020304,2]
[359394160,1745985038122,-4000.0,0.00020451,2]
[359394161,1745985038131,-158.34,0.00020545,2]
[359394162,1745985038140,-171.5,0.00020585,2]
[359394163,1745985038150,-158.34,0.00020647,2]
[359394164,1745985038159,-1206.18,0.00020653,2]
[359394165,1745985038169,-551.68,0.00020687,2]
[359394166,1745985038178,-150.0,0.00020719,2]
[359394167,1745985038187,-250.0,0.00020736,2]
[359394168,1745985038196,-150.0,0.00020739,2]
[359394169,1745985038206,-1000.0,0.00020755,2]
[359394170,1745985038215,-2437.91,0.00020865,2]
[359394171,1745985038224,-178.94,0.00020978,2]
[359394172,1745985038234,-350.0,0.00021,2]
[359394173,1745985038243,-2468.08,0.00021004,2]
[359394174,1745985038252,-200.0,0.00021217,2]
[359394175,1745985038261,-1000.0,0.00021422,2]
[359394176,1745985038271,-1000.0,0.00021422,2]
[359394177,1745985038280,-1000.0,0.00021422,2]
[359394178,1745985038289,-1000.0,0.00021422,2]
[359394179,1745985038299,-1000.0,0.00021422,2]
[359394180,1745985038308,-1000.0,0.00021422,2]
[359394181,1745985038317,-1081.0,0.00021422,2]
[359394182,1745985038326,-200.0,0.00021423,2]
[359394183,1745985038336,-200.0,0.00021463,2]
[359394184,1745985038346,-13747.92,0.00021492,2]
[359394185,1745985038356,-732.59,0.00021644,2]
[359394186,1745985038365,-1000.0,0.00021644,2]
[359394187,1745985038374,-7314.26836107,0.000217,2]
[359394188,1745985038383,-171.5,0.00021729,2]
[359394189,1745985038393,-14186.46702784,0.0002173,2]
[359394190,1745985038402,-1680.0,0.00021774,2]
[359394191,1745985038412,-250.0,0.0002179,2]
[359394192,1745985038421,-5053.54823058,0.000218,2]
[359394193,1745985038430,-301.84461807,0.00021875,2]